bitfinex/quotes_BTCUSD_20220218
["timestamp","ask_amount","ask_price","bid_price","bid_amount"]
[1645157116687,0.5,40752.0,40751.0,0.57862538]
[1645157117086,0.061389,40753.0,40752.0,0.05801106]
[1645157117486,0.122761,40753.0,40752.0,0.05801106]
[1645157117984,0.172761,40753.0,40752.0,0.05801106]
[1645157119635,0.174761,40753.0,40752.0,0.05801106]
[1645157119836,0.124761,40753.0,40752.0,0.05801106]
[1645157120540,0.063389,40753.0,40752.0,0.05801106]
[1645157120938,0.061389,40753.0,40752.0,0.05801106]
[1645157121138,0.061389,40753.0,40752.0,0.49732375]
[1645157121638,0.063389,40753.0,40752.0,0.49732375]
[1645157124992,0.061389,40753.0,40752.0,0.49732375]
[1645157125193,0.061389,40753.0,40752.0,0.49842477]
[1645157127634,0.063389,40753.0,40752.0,0.49842477]
[1645157128837,0.061389,40753.0,40752.0,0.49842477]
[1645157138889,0.7241377,40753.0,40752.0,0.49833709]
[1645157139094,0.210389,40753.0,40752.0,0.49833709]
[1645157139288,0.67648951,40753.0,40752.0,0.49833709]
[1645157139489,0.4322856,40753.0,40752.0,0.49833709]
[1645157139689,0.4342856,40753.0,40752.0,0.49833709]
[1645157140289,0.4342856,40753.0,40752.0,0.49723607]
[1645157140689,0.5570446,40753.0,40752.0,0.49723607]
[1645157141103,0.8570446,40753.0,40752.0,0.49723607]
[1645157141751,0.8590446,40753.0,40752.0,0.49723607]
[1645157142948,0.8550446,40753.0,40752.0,0.49723607]
[1645157146893,0.87157009,40753.0,40752.0,0.49723607]
[1645157147690,0.87357009,40753.0,40752.0,0.49723607]
[1645157149550,0.87357009,40753.0,40752.0,0.26309011]
[1645157149551,0.82357009,40753.0,40752.0,0.26309011]
[1645157149747,0.82557009,40753.0,40752.0,0.26309011]
[1645157149945,0.82357009,40753.0,40752.0,0.26309011]
[1645157150946,0.82157009,40753.0,40752.0,0.26309011]
[1645157151748,0.82357009,40753.0,40752.0,0.26309011]
[1645157153297,0.82157009,40753.0,40752.0,0.26309011]
[1645157154502,0.82357009,40753.0,40752.0,0.26309011]
[1645157155504,0.82357009,40753.0,40752.0,0.26419113]
[1645157155705,2.12657009,40753.0,40752.0,0.26419113]
[1645157155906,2.73937009,40753.0,40752.0,0.12597224]
[1645157156105,3.64295333,40753.0,40751.0,0.57998523]
[1645157156305,2.35622209,40752.0,40751.0,0.57998523]
[1645157156537,2.35622209,40752.0,40742.0,0.13931269]
[1645157156538,3.54137209,40752.0,40742.0,0.13931269]
[1645157156739,0.42741749,40747.0,40742.0,0.13931269]
[1645157156938,1.42931629,40746.0,40742.0,0.13931269]
[1645157157139,1.52931629,40746.0,40742.0,0.13931269]
[1645157157341,1.62931629,40746.0,40742.0,0.13931269]
[1645157157738,1.63131629,40746.0,40742.0,0.13931269]
[1645157157938,2.93631629,40746.0,40742.0,0.13931269]
[1645157158142,3.68881969,40746.0,40742.0,0.13931269]
[1645157158339,3.75022769,40746.0,40742.0,0.13931269]
[1645157158939,3.74822769,40746.0,40745.0,0.26480369]
[1645157160390,1.489223,40744.0,40742.0,0.13931269]
[1645157160590,1.489223,40744.0,40742.0,0.57862538]
[1645157160591,1.146558,40743.0,40742.0,0.57862538]
[1645157160893,1.346558,40743.0,40742.0,0.57862538]
[1645157162497,1.66015688,40743.0,40742.0,0.57862538]
[1645157162992,0.30035535,40733.0,40732.0,0.14831269]
[1645157163191,0.30035535,40733.0,40732.0,0.13931269]
[1645157163192,0.29597688,40733.0,40732.0,0.13931269]
[1645157164240,0.35738488,40733.0,40732.0,0.13931269]
[1645157165740,0.36038488,40733.0,40732.0,0.13931269]
[1645157166942,0.35738488,40733.0,40732.0,0.13931269]
[1645157167795,0.113408,40733.0,40732.0,0.13931269]
[1645157168392,0.103408,40733.0,40732.0,0.13931269]
[1645157168992,0.100408,40733.0,40732.0,0.13931269]
[1645157169394,0.34243477,40733.0,40732.0,0.13931269]
[1645157169796,0.34543477,40733.0,40732.0,0.13931269]
[1645157170895,0.39543477,40733.0,40732.0,0.13931269]
[1645157171094,0.39243477,40733.0,40732.0,0.13931269]
[1645157171738,0.39443477,40733.0,40732.0,0.13958556]
[1645157172539,0.152408,40733.0,40732.0,0.13958556]
[1645157172743,0.102408,40733.0,40732.0,0.13958556]
[1645157172940,0.100408,40733.0,40732.0,0.13958556]
[1645157173742,0.31073449,40733.0,40732.0,0.13958556]
[1645157174942,0.55073449,40733.0,40732.0,0.13958556]
[1645157175887,0.55273449,40733.0,40732.0,0.13958556]
[1645157176287,0.55245533,40733.0,40732.0,0.13958556]
[1645157177088,0.55045533,40733.0,40732.0,0.13958556]
[1645157177490,0.34012884,40733.0,40732.0,0.13958556]
[1645157179843,0.39012884,40733.0,40732.0,0.13958556]
[1645157181444,0.38512884,40733.0,40732.0,0.13958556]
[1645157183412,0.32372084,40733.0,40732.0,0.13958556]
[1645157183615,0.285,40733.0,40732.0,0.13958556]
[1645157183814,0.24,40733.0,40732.0,0.43958556]
[1645157184310,0.24,40733.0,40732.0,0.63783076]
[1645157184911,0.24,40733.0,40732.0,0.68783076]
[1645157185809,0.24,40733.0,40732.0,0.68883076]
[1645157187041,0.24,40733.0,40732.0,0.68783076]
[1645157187840,0.24,40733.0,40732.0,0.68883076]
[1645157189045,0.24,40733.0,40732.0,0.68783076]
[1645157190047,0.24,40733.0,40732.0,0.68883076]
[1645157190293,0.24,40733.0,40732.0,0.63883076]
[1645157190488,0.24,40733.0,40732.0,0.68883076]
[1645157191088,0.24,40733.0,40732.0,0.68783076]
[1645157191889,0.241,40733.0,40732.0,0.68783076]
[1645157193089,0.061389,40742.0,40740.0,0.3181377]
[1645157193293,0.99762667,40743.0,40740.0,0.57010131]
[1645157193294,0.06139,40741.0,40740.0,0.57010131]
[1645157193890,0.06339,40741.0,40740.0,0.57010131]
[1645157194340,0.12478,40741.0,40740.0,0.57010131]
[1645157195042,0.12278,40741.0,40740.0,0.57010131]
[1645157195442,0.12278,40741.0,40740.0,0.3181377]
[1645157195843,0.12478,40741.0,40740.0,0.3181377]
[1645157196644,0.12478,40741.0,40740.0,0.31841057]
[1645157196946,0.12478,40741.0,40740.0,0.3181377]
[1645157197144,0.12278,40741.0,40740.0,0.31841057]
[1645157197544,0.36278,40741.0,40740.0,0.31841057]
[1645157197795,0.41278,40741.0,40740.0,0.31841057]
[1645157197990,0.41578,40741.0,40740.0,0.31841057]
[1645157198189,0.36578,40741.0,40740.0,0.31841057]
[1645157199790,0.36278,40741.0,40740.0,0.31841057]
[1645157199990,0.36678,40741.0,40740.0,0.31841057]
[1645157200992,0.41678,40741.0,40740.0,0.3181377]
[1645157201196,0.41278,40741.0,40740.0,0.3181377]
[1645157201395,0.72311146,40741.0,40740.0,0.3181377]
[1645157201644,0.46178,40741.0,40740.0,0.3181377]
[1645157202648,0.46178,40741.0,40740.0,0.31841057]
[1645157202849,0.46178,40741.0,40740.0,0.3181377]
[1645157203051,0.46178,40741.0,40740.0,0.2681377]
[1645157205794,1.19793,40741.0,40740.0,0.2681377]
[1645157209845,1.35093,40741.0,40740.0,0.2681377]
[1645157210046,1.66452888,40741.0,40740.0,0.2681377]
[1645157211246,1.66152888,40741.0,40740.0,0.2681377]
[1645157212895,1.71385746,40741.0,40740.0,0.2681377]
[1645157213894,1.71585746,40741.0,40740.0,0.2681377]
[1645157214299,1.51727396,40741.0,40740.0,0.2681377]
[1645157215095,1.51527396,40741.0,40740.0,0.2681377]
[1645157216097,1.71402443,40741.0,40740.0,0.2681377]
[1645157216737,1.51761436,40741.0,40740.0,0.2681377]
[1645157218038,1.51961436,40741.0,40740.0,0.2681377]
[1645157219239,1.51761436,40741.0,40740.0,0.2681377]
[1645157224147,1.51961436,40741.0,40740.0,0.2681377]
[1645157225350,1.51761436,40741.0,40740.0,0.2681377]
[1645157225852,1.51761436,40741.0,40740.0,0.07292345]
[1645157225853,2.82261436,40741.0,40740.0,0.07292345]
[1645157226050,2.82461436,40741.0,40740.0,0.07292345]
[1645157227654,3.41436554,40741.0,40740.0,0.07292345]
[1645157227887,3.41236554,40741.0,40740.0,0.07292345]
[1645157228089,3.41436554,40741.0,40740.0,0.07292345]
[1645157229190,3.41236554,40741.0,40740.0,0.07292345]
[1645157229388,1.68508407,40741.0,40740.0,0.07292345]
[1645157229791,2.99008407,40741.0,40740.0,0.07292345]
[1645157230093,3.60288407,40741.0,40740.0,0.07292345]
[1645157230490,2.29788407,40741.0,40740.0,0.07292345]
[1645157230690,2.72016554,40741.0,40740.0,0.07292345]
[1645157231543,4.02516554,40741.0,40740.0,0.07292345]
[1645157231744,3.60288407,40741.0,40740.0,0.07292345]
[1645157232044,4.02516554,40741.0,40740.0,0.07292345]
[1645157234046,4.52716554,40741.0,40740.0,0.07292345]
[1645157234246,2.79988407,40741.0,40740.0,0.07292345]
[1645157234647,4.10488407,40741.0,40740.0,0.07292345]
[1645157234848,3.93741436,40741.0,40740.0,0.07292345]
[1645157235046,4.35969583,40741.0,40740.0,0.07292345]
[1645157235291,4.35769583,40741.0,40740.0,0.07292345]
[1645157235488,2.85269583,40741.0,40740.0,0.07292345]
[1645157235690,2.43041436,40741.0,40740.0,0.07292345]
[1645157235891,1.93041436,40741.0,40740.0,0.07292345]
[1645157236290,1.92541436,40741.0,40740.0,0.07292345]
[1645157236889,2.12541436,40741.0,40740.0,0.07292345]
[1645157237992,2.12741436,40741.0,40740.0,0.07292345]
[1645157239242,2.12541436,40741.0,40740.0,0.07292345]
[1645157240041,2.12741436,40741.0,40740.0,0.07292345]
[1645157241346,2.12541436,40741.0,40740.0,0.07292345]
[1645157242796,2.12529436,40741.0,40740.0,0.07276054]
[1645157242995,2.10529436,40741.0,40740.0,0.07276054]
[1645157243194,2.10149436,40741.0,40740.0,0.07276054]
[1645157243992,2.18349436,40741.0,40740.0,0.07276054]
[1645157244994,2.18310436,40741.0,40740.0,0.07276054]
[1645157245197,2.18110436,40741.0,40740.0,0.07276054]
[1645157246741,2.17963436,40741.0,40740.0,0.07276054]
[1645157246940,2.15541436,40741.0,40740.0,0.07276054]
[1645157247743,2.15286436,40741.0,40740.0,0.07276054]
[1645157248344,2.20143436,40741.0,40740.0,0.07276054]
[1645157250046,2.20343436,40741.0,40740.0,0.07276054]
[1645157251391,2.20143436,40741.0,40740.0,0.07276054]
[1645157257147,2.62143436,40741.0,40740.0,0.07276054]
[1645157260112,2.62443436,40741.0,40740.0,0.07276054]
[1645157261314,2.7889192,40741.0,40740.0,0.07276054]
[1645157261546,2.62143436,40741.0,40740.0,0.07276054]
[1645157261746,2.78891829,40741.0,40740.0,0.07276054]
[1645157262146,2.62343436,40741.0,40740.0,0.07276054]
[1645157262348,2.79091825,40741.0,40740.0,0.07276054]
[1645157262946,2.62343436,40741.0,40740.0,0.07276054]
[1645157263348,2.62143436,40741.0,40740.0,0.07276054]
[1645157268093,2.62443436,40741.0,40740.0,0.07276054]
[1645157269147,2.01163436,40741.0,40740.0,0.07276054]
[1645157269346,1.95863436,40741.0,40740.0,0.07276054]
[1645157269547,1.86006436,40741.0,40740.0,0.07276054]
[1645157269748,1.91006436,40741.0,40740.0,0.07276054]
[1645157269947,2.20612151,40741.0,40740.0,0.07276054]
[1645157270148,1.91006436,40741.0,40740.0,0.07276054]
[1645157270347,1.81006436,40741.0,40740.0,0.07276054]
[1645157271849,1.81006436,40741.0,40740.0,0.07268489]
[1645157274796,1.93286609,40741.0,40740.0,0.07268489]
[1645157276298,1.93586609,40741.0,40740.0,0.07268489]
[1645157276846,1.93286609,40741.0,40740.0,0.07268489]
[1645157278046,2.12938351,40741.0,40740.0,0.07268489]
[1645157278246,1.93845646,40741.0,40740.0,0.07268489]
[1645157278447,2.12938303,40741.0,40740.0,0.07268489]
[1645157279049,1.9384518,40741.0,40740.0,0.07268489]
[1645157279248,2.12938273,40741.0,40740.0,0.07268489]
[1645157279453,0.08,40740.0,40738.0,0.0002369]
[1645157279649,0.877551,40739.0,40738.0,0.0002369]
[1645157279849,1.297551,40739.0,40738.0,0.0002369]
[1645157280502,0.08,40738.0,40736.0,0.0094]
[1645157280701,0.877555,40737.0,40736.0,0.00963691]
[1645157281800,0.877555,40737.0,40735.0,0.20955728]
[1645157282005,0.3415699,40736.0,40735.0,0.20983015]
[1645157282402,0.08,40736.0,40735.0,0.00027287]
[1645157282601,0.141405,40735.0,40734.0,0.00023691]
[1645157282802,0.40297676,40735.0,40733.0,0.06167449]
[1645157283805,0.141405,40735.0,40733.0,0.06167449]
[1645157284045,0.40297676,40735.0,40733.0,0.06167449]
[1645157284244,0.142405,40735.0,40733.0,0.06167449]
[1645157284649,0.40397676,40735.0,40733.0,0.06167449]
[1645157284846,0.142405,40735.0,40733.0,0.06167449]
[1645157285044,0.081,40735.0,40733.0,0.06167449]
[1645157285445,0.08,40735.0,40733.0,0.06167449]
[1645157285847,0.34157176,40735.0,40733.0,0.06167449]
[1645157288802,0.08,40734.0,40733.0,0.06167449]
[1645157290098,0.08,40734.0,40733.0,0.06267449]
[1645157290799,0.28921629,40734.0,40733.0,0.06267449]
[1645157291403,0.28921629,40734.0,40733.0,0.06167449]
[1645157292649,0.08,40734.0,40733.0,0.11167449]
[1645157293649,0.08,40734.0,40733.0,0.38851228]
[1645157293850,0.08,40734.0,40733.0,0.11167449]
[1645157294050,0.73615,40737.0,40734.0,0.95]
[1645157294351,0.73615,40737.0,40736.0,0.311383]
[1645157294551,0.73615,40737.0,40736.0,0.643486]
[1645157295900,0.08839412,40741.0,40740.0,0.2]
[1645157296099,0.08839412,40741.0,40740.0,0.05]
[1645157296896,0.08839412,40741.0,40740.0,0.73736359]
[1645157297298,0.08839412,40741.0,40740.0,1.19221133]
[1645157297899,0.08839412,40741.0,40740.0,0.86010833]
[1645157298099,0.08839412,40741.0,40740.0,1.19221133]
[1645157298299,0.08839412,40741.0,40740.0,1.19421133]
[1645157299551,0.08839412,40741.0,40740.0,1.19221133]
[1645157300353,0.08839412,40741.0,40740.0,0.86010833]
[1645157301154,0.08839412,40741.0,40740.0,0.59873659]
[1645157301355,0.08839412,40741.0,40740.0,0.79873659]
[1645157301557,0.08839412,40741.0,40740.0,1.43083959]
[1645157301956,0.08839412,40741.0,40740.0,1.09873659]
[1645157303296,0.08839412,40741.0,40740.0,0.89873659]
[1645157303498,0.08839412,40741.0,40740.0,1.09873659]
[1645157303897,0.08839412,40741.0,40740.0,0.36834477]
[1645157305199,0.08839412,40741.0,40740.0,0.57798442]
[1645157305599,0.08839412,40741.0,40740.0,0.02110627]
[1645157306199,0.08839412,40741.0,40740.0,0.32310627]
[1645157306848,0.08839412,40741.0,40740.0,0.08447927]
[1645157307049,0.08839412,40741.0,40740.0,0.06455718]
[1645157307449,0.08839412,40741.0,40740.0,0.06255718]
[1645157308249,0.08839412,40741.0,40740.0,0.06455718]
[1645157309753,0.08839412,40741.0,40740.0,0.06255718]
[1645157312294,0.08839412,40741.0,40740.0,0.06455718]
[1645157313595,0.08839412,40741.0,40740.0,0.06255718]
[1645157314649,0.08839412,40741.0,40740.0,0.00118418]
[1645157315549,0.08839412,40741.0,40739.0,0.06256365]
[1645157316249,0.08839412,40741.0,40739.0,0.06456365]
[1645157316750,0.08839412,40741.0,40739.0,0.12594565]
[1645157317550,0.08839412,40741.0,40739.0,0.12394565]
[1645157317802,0.08839412,40741.0,40739.0,0.00118418]
[1645157320600,0.08839412,40741.0,40738.0,0.06277938]
[1645157321005,0.08839412,40741.0,40739.0,0.06138035]
[1645157321202,0.08839412,40741.0,40738.0,0.12416238]
[1645157321404,0.08839412,40741.0,40738.0,0.12393918]
[1645157321647,0.08839412,40741.0,40738.0,0.12416238]
[1645157322447,0.08839412,40741.0,40739.0,0.393484]
[1645157323448,0.08839412,40741.0,40739.0,0.45486323]
[1645157324448,0.08505228,40741.0,40739.0,0.45486323]
[1645157324648,0.08505228,40741.0,40740.0,0.332103]
[1645157325399,0.08505228,40741.0,40740.0,0.33328718]
[1645157325598,0.08505228,40741.0,40740.0,0.66982353]
[1645157326498,0.08505228,40741.0,40740.0,0.67182353]
[1645157327503,0.08505228,40741.0,40740.0,0.66982353]
[1645157329146,0.08505228,40741.0,40740.0,0.76982353]
[1645157330348,0.08505228,40741.0,40740.0,0.77182353]
[1645157331650,0.08505228,40741.0,40740.0,0.76982353]
[1645157332811,0.08505228,40741.0,40740.0,0.81982353]
[1645157333709,0.08505228,40741.0,40740.0,0.76982353]
[1645157334308,0.08505228,40741.0,40740.0,0.77182353]
[1645157335513,0.08505228,40741.0,40740.0,0.432199]
[1645157336316,0.08505228,40741.0,40740.0,0.434199]
[1645157337550,0.08505228,40741.0,40740.0,0.64068522]
[1645157338451,0.08505228,40741.0,40740.0,0.64268522]
[1645157340051,0.08505228,40741.0,40740.0,0.84268522]
[1645157340300,0.08505228,40741.0,40740.0,0.64068522]
[1645157341902,0.08505228,40741.0,40740.0,1.18808522]
[1645157344354,0.08505228,40741.0,40740.0,1.19008522]
[1645157345552,0.08505228,40741.0,40740.0,1.18808522]
[1645157345754,0.08505228,40741.0,40740.0,0.64068522]
[1645157347254,0.67495656,40749.0,40742.0,0.122746]
[1645157347554,0.67495656,40749.0,40744.0,0.06137253]
[1645157347555,0.37495656,40749.0,40744.0,0.06137253]
[1645157347997,0.25615656,40749.0,40744.0,0.06137253]
[1645157348198,0.25615656,40749.0,40743.0,0.00023719]
[1645157348397,0.25715656,40749.0,40743.0,0.06161219]
[1645157348597,0.25715656,40749.0,40745.0,0.061373]
[1645157349298,0.25715656,40749.0,40745.0,0.06161019]
[1645157349698,0.25615656,40749.0,40745.0,0.06161019]
[1645157350198,0.25615656,40749.0,40745.0,0.061373]
[1645157350399,0.55715656,40749.0,40745.0,0.12298319]
[1645157350698,0.25715656,40749.0,40745.0,0.12298319]
[1645157350898,0.55715656,40749.0,40745.0,0.12298319]
[1645157351098,0.301,40749.0,40745.0,0.06161019]
[1645157351296,0.001,40749.0,40745.0,0.06161019]
[1645157351549,2.68359356,40750.0,40746.0,0.1227422]
[1645157351749,2.68359356,40750.0,40746.0,0.1841132]
[1645157351949,0.3,40749.0,40746.0,0.1841132]
[1645157352350,2.68359356,40750.0,40746.0,0.1237412]
[1645157352753,2.68359356,40750.0,40747.0,0.06137]
[1645157352955,2.68359356,40750.0,40748.0,0.061369]
[1645157353152,2.42,40750.0,40748.0,0.061369]
[1645157354356,2.42,40750.0,40748.0,0.062369]
[1645157354657,2.7403931,40750.0,40748.0,0.062369]
[1645157354856,2.7403931,40750.0,40748.0,0.123738]
[1645157355704,2.7403931,40750.0,40748.0,0.122738]
[1645157356305,0.26144556,40749.0,40748.0,0.122738]
[1645157356506,0.26144556,40749.0,40748.0,0.062369]
[1645157356705,0.26144556,40749.0,40748.0,0.001]
[1645157357409,0.21144556,40749.0,40748.0,0.001]
[1645157357608,2.95183866,40750.0,40748.0,0.001]
[1645157357809,0.24,40749.0,40748.0,0.061371]
[1645157358006,0.24,40749.0,40746.0,0.12297822]
[1645157358207,0.20915321,40748.0,40746.0,0.12297886]
[1645157358607,0.20915321,40748.0,40746.0,0.122742]
[1645157358808,0.20915321,40748.0,40746.0,0.1841125]
[1645157360452,0.20915321,40748.0,40746.0,0.1851125]
[1645157361652,0.20915321,40748.0,40746.0,0.1841125]
[1645157361852,0.20915321,40748.0,40746.0,0.061371]
[1645157362453,0.21015321,40748.0,40746.0,0.061371]
[1645157362657,0.21051398,40748.0,40746.0,0.061371]
[1645157363705,0.20951398,40748.0,40746.0,0.061371]
[1645157364507,0.21051398,40748.0,40746.0,0.061371]
[1645157365410,0.00136077,40748.0,40746.0,0.061371]
[1645157365608,0.03294661,40741.0,40740.0,0.54059516]
[1645157365809,0.03294661,40741.0,40738.0,0.20839616]
[1645157366010,0.03294661,40741.0,40737.0,0.20839616]
[1645157366213,0.03294661,40741.0,40738.0,0.122774]
[1645157366214,0.2647534,40739.0,40738.0,0.122774]
[1645157366411,0.2647534,40739.0,40737.0,0.061395]
[1645157366849,0.332088,40738.0,40737.0,0.061395]
[1645157367050,0.2647534,40739.0,40737.0,0.061395]
[1645157367250,0.332088,40738.0,40737.0,0.061395]
[1645157367451,0.2647534,40739.0,40737.0,0.06167171]
[1645157368452,0.332088,40738.0,40737.0,0.06267171]
[1645157368652,0.2647534,40739.0,40737.0,0.06267171]
[1645157369353,0.2647534,40739.0,40737.0,0.00127671]
[1645157369752,0.2647534,40739.0,40737.0,0.06166471]
[1645157370406,0.2657534,40739.0,40737.0,0.06166471]
[1645157371803,0.332088,40738.0,40737.0,0.06166471]
[1645157372506,0.332088,40738.0,40737.0,0.00027671]
[1645157372706,0.2647534,40739.0,40736.0,0.12302648]
[1645157372908,0.332088,40738.0,40736.0,0.12302648]
[1645157373105,0.332088,40738.0,40736.0,0.122775]
[1645157373306,0.5647534,40739.0,40735.0,0.00027671]
[1645157373307,0.682088,40737.0,40735.0,0.00052819]
[1645157373506,0.682088,40737.0,40735.0,0.00025148]
[1645157373507,0.632088,40736.0,40735.0,0.00025148]
[1645157373706,0.84127145,40736.0,40735.0,0.00025148]
[1645157373904,0.3,40736.0,40735.0,0.00025148]
[1645157374149,0.68665425,40739.0,40734.0,0.00027671]
[1645157374150,0.27058345,40738.0,40734.0,0.00027671]
[1645157374348,0.332088,40736.0,40733.0,0.00917671]
[1645157374548,0.001,40736.0,40734.0,0.061394]
[1645157374748,0.001,40736.0,40734.0,0.06167071]
[1645157375552,0.001,40736.0,40734.0,0.12305919]
[1645157375749,0.049,40737.0,40734.0,0.12305919]
[1645157376550,0.049,40737.0,40734.0,0.12405919]
[1645157376951,0.332088,40736.0,40734.0,0.06267071]
[1645157377351,0.049,40737.0,40734.0,0.06267071]
[1645157377802,0.049,40737.0,40734.0,0.06167071]
[1645157378399,0.05,40738.0,40734.0,0.06267071]
[1645157378898,0.2647534,40739.0,40734.0,0.06267071]
[1645157379100,0.632088,40738.0,40734.0,0.06267071]
[1645157379301,0.682088,40738.0,40734.0,0.0629222]
[1645157379702,0.682088,40738.0,40734.0,0.0619222]
[1645157379901,0.382088,40738.0,40734.0,0.0619222]
[1645157380101,0.332088,40737.0,40734.0,0.0619222]
[1645157380301,0.332088,40737.0,40734.0,0.06167071]
[1645157380502,0.05,40735.0,40734.0,0.0629222]
[1645157380704,0.05,40735.0,40734.0,0.0015282]
[1645157381553,0.29,40738.0,40734.0,0.00127671]
[1645157381753,0.29,40738.0,40734.0,0.06166471]
[1645157381955,0.24,40738.0,40734.0,0.06166471]
[1645157382153,0.24,40738.0,40735.0,0.061387]
[1645157382353,0.05,40737.0,40735.0,0.06166371]
[1645157382552,0.332088,40736.0,40735.0,0.00027671]
[1645157382754,0.332088,40736.0,40734.0,0.06166471]
[1645157382952,0.05,40737.0,40734.0,0.0619162]
[1645157383954,0.05,40737.0,40734.0,0.06166471]
[1645157384557,0.051,40737.0,40734.0,0.06166471]
[1645157385154,0.112397,40737.0,40734.0,0.06166471]
[1645157385598,0.051,40737.0,40734.0,0.06166471]
[1645157386402,0.05,40737.0,40734.0,0.06166471]
[1645157388004,0.04342366,40737.0,40734.0,0.06166471]
[1645157388402,0.04442366,40737.0,40734.0,0.06166471]
[1645157388803,0.04342366,40735.0,40734.0,0.06166471]
[1645157389049,0.04342366,40735.0,40734.0,0.06166754]
[1645157389249,0.04342366,40735.0,40734.0,0.12305854]
[1645157390449,0.04342366,40735.0,40734.0,0.12505854]
[1645157391651,0.04342366,40735.0,40734.0,0.06166754]
[1645157392455,0.04342366,40735.0,40734.0,0.06366754]
[1645157393720,0.04342366,40735.0,40734.0,0.06166754]
[1645157394421,0.04342366,40735.0,40734.0,0.06266754]
[1645157395521,0.04342366,40735.0,40733.0,0.14334379]
[1645157396419,0.04342366,40735.0,40733.0,0.14534379]
[1645157396651,0.04342366,40735.0,40734.0,0.06139083]
[1645157398454,0.04342366,40735.0,40734.0,0.06239083]
[1645157399755,0.04342366,40735.0,40734.0,0.06139083]
[1645157400597,0.04342366,40735.0,40734.0,0.06239083]
[1645157401897,0.04342366,40735.0,40734.0,0.06139083]
[1645157402697,0.04342366,40735.0,40734.0,0.06239083]
[1645157402899,0.04342366,40735.0,40734.0,0.001]
[1645157404057,0.04342366,40735.0,40733.0,0.26611776]
[1645157406768,0.04342366,40735.0,40733.0,0.32750463]
[1645157408608,0.04342366,40735.0,40733.0,0.32850463]
[1645157409412,0.04342366,40735.0,40733.0,0.26711776]
[1645157409811,0.04342366,40735.0,40733.0,0.26611776]
[1645157410608,0.04342366,40735.0,40733.0,0.26739358]
[1645157411855,0.04342366,40735.0,40733.0,0.26639358]
[1645157412556,0.04342366,40735.0,40733.0,0.26739358]
[1645157413858,0.04342366,40735.0,40733.0,0.26639358]
[1645157416707,0.04442366,40735.0,40733.0,0.14361961]
[1645157417311,0.25355417,40735.0,40733.0,0.14361961]
[1645157417508,0.25355417,40735.0,40733.0,0.19611409]
[1645157417711,0.25255417,40735.0,40733.0,0.19611409]
[1645157418509,0.25255417,40735.0,40733.0,0.19711409]
[1645157419757,0.25255417,40735.0,40733.0,0.19611409]
[1645157420654,0.25255417,40735.0,40733.0,0.19811409]
[1645157421754,0.02981667,40734.0,40733.0,0.19611409]
[1645157422556,0.02981667,40734.0,40733.0,0.19811409]
[1645157423802,0.02981667,40734.0,40733.0,0.19611409]
[1645157424603,0.02981667,40734.0,40733.0,0.19811409]
[1645157425603,0.02981667,40734.0,40733.0,0.05551621]
[1645157425803,0.57103518,40734.0,40733.0,0.05351621]
[1645157426004,0.23894718,40734.0,40733.0,0.05351621]
[1645157426205,0.23894718,40734.0,40733.0,0.00027582]
[1645157426406,0.23894718,40734.0,40732.0,0.13958851]
[1645157427847,0.02981667,40734.0,40732.0,0.13958851]
[1645157428446,0.02981667,40734.0,40732.0,0.26237828]
[1645157428647,0.03081667,40734.0,40732.0,0.26237828]
[1645157429846,0.02981667,40734.0,40732.0,0.26237828]
[1645157430698,0.02981667,40734.0,40732.0,0.26337828]
[1645157432001,0.02981667,40734.0,40732.0,0.26237828]
[1645157432602,0.02981667,40734.0,40732.0,0.26437828]
[1645157434053,0.332088,40733.0,40732.0,0.13958851]
[1645157434258,0.69250113,40733.0,40732.0,0.13958851]
[1645157434455,0.481088,40733.0,40732.0,0.13958851]
[1645157434656,0.781088,40733.0,40732.0,0.09593036]
[1645157434852,0.831088,40733.0,40732.0,0.09593036]
[1645157435055,0.89706639,40733.0,40732.0,0.09593036]
[1645157435252,0.89729329,40733.0,40732.0,0.09593036]
[1645157435852,1.02012029,40733.0,40731.0,0.23931269]
[1645157436052,0.36621157,40732.0,40731.0,0.23931269]
[1645157436251,0.74729957,40732.0,40731.0,0.23958794]
[1645157436452,1.04729957,40732.0,40731.0,0.23958794]
[1645157436853,1.36820762,40732.0,40731.0,0.23958794]
[1645157437052,1.36820762,40732.0,40731.0,0.23931269]
[1645157437453,0.70199605,40732.0,40731.0,0.23931269]
[1645157438704,0.70399605,40732.0,40731.0,0.23931269]
[1645157439104,0.92996754,40732.0,40731.0,0.23931269]
[1645157439303,1.24373614,40732.0,40731.0,0.23931269]
[1645157439505,0.92996754,40732.0,40731.0,0.23931269]
[1645157439803,0.92796754,40732.0,40731.0,0.23931269]
[1645157440005,0.95,40731.0,40730.0,0.00027525]
[1645157440203,0.73555719,40730.0,40729.0,0.00023678]
[1645157440403,1.20740519,40730.0,40718.0,0.00027525]
[1645157440708,1.20740519,40730.0,40715.0,0.00027525]
[1645157440709,0.332088,40718.0,40715.0,0.00027525]
[1645157440903,0.332088,40718.0,40713.0,0.20916107]
[1645157441205,0.28006055,40716.0,40713.0,0.20888582]
[1645157441404,0.28006055,40716.0,40714.0,0.122851]
[1645157441652,0.52881715,40716.0,40714.0,0.12312625]
[1645157441851,0.52881715,40716.0,40714.0,0.122851]
[1645157442651,0.59024615,40716.0,40714.0,0.122851]
[1645157443257,0.59024615,40716.0,40714.0,0.12312625]
[1645157443455,0.52881715,40716.0,40714.0,0.12312625]
[1645157444155,0.55863382,40716.0,40714.0,0.122851]
[1645157444355,0.27857327,40716.0,40714.0,0.12312625]
[1645157444554,0.27857327,40716.0,40714.0,0.12512625]
[1645157444955,0.332088,40715.0,40714.0,0.12512625]
[1645157445401,0.332088,40715.0,40714.0,0.124851]
[1645157445805,0.332088,40715.0,40714.0,0.122851]
[1645157446201,0.332088,40715.0,40713.0,0.00027525]
[1645157446402,0.393522,40715.0,40712.0,0.061434]
[1645157446601,0.063434,40715.0,40712.0,0.06167032]
[1645157446802,0.332088,40714.0,40712.0,0.06167032]
[1645157447201,0.063434,40715.0,40712.0,0.06167032]
[1645157447701,0.063434,40715.0,40712.0,0.061434]
[1645157447903,0.061434,40715.0,40712.0,0.061434]
[1645157448103,0.061434,40715.0,40712.0,0.00027525]
[1645157448104,0.36190467,40713.0,40712.0,0.00027525]
[1645157448308,0.36190467,40713.0,40711.0,0.00023632]
[1645157448309,0.78478867,40713.0,40711.0,0.00023632]
[1645157448502,0.632088,40712.0,40711.0,0.00023632]
[1645157448905,0.332088,40711.0,40706.0,0.00027525]
[1645157449153,0.3,40712.0,40705.0,0.00027525]
[1645157449154,0.26522407,40707.0,40705.0,0.00027525]
[1645157449352,0.26522407,40707.0,40703.0,0.06170925]
[1645157449552,0.26522407,40707.0,40704.0,0.00027525]
[1645157449753,0.26522407,40707.0,40705.0,0.32947672]